[Event "Titled Tuesday Blitz June 27 Early 2023"]
[White "Hakobyan, Aram"]
[Black "Makhnev, Denis"]
[WhiteFideId "13306677"]
[BlackFideId "13707647"]
[WhiteElo "3003"]
[BlackElo "2914"]
[Result "1-0"]
[Round "6"]
[TimeControl "180+2"]
[Date "2023.06.27"]
[WhiteClock "0:00:03"]
[BlackClock "0:00:00"]
[Board "1"]

1. d4 {[%clk 0:03:00]}  d5 {[%clk 0:02:59]} 2. c4 {[%clk 0:03:01]}  Nc6 {[%clk 0:02:59]} 3. Nf3 {[%clk 0:03:00]}  Bg4 {[%clk 0:02:59]} 4. Nc3 {[%clk 0:02:53]}  dxc4 {[%clk 0:02:58]} 5. d5 {[%clk 0:02:45]}  Bxf3 {[%clk 0:02:58]} 6. exf3 {[%clk 0:02:37]}  Ne5 {[%clk 0:02:58]} 7. f4 {[%clk 0:02:33]}  Nd3+ {[%clk 0:02:58]} 8. Bxd3 {[%clk 0:02:33]}  cxd3 {[%clk 0:02:59]} 9. Qxd3 {[%clk 0:02:33]}  c6 {[%clk 0:02:59]} 10. Qf3 {[%clk 0:02:06]}  Qd7 {[%clk 0:01:58]} 11. dxc6 {[%clk 0:02:04]}  Qxc6 {[%clk 0:01:58]} 12. Qxc6+ {[%clk 0:01:53]}  bxc6 {[%clk 0:01:58]} 13. Be3 {[%clk 0:01:46]}  e6 {[%clk 0:01:57]} 14. Rc1 {[%clk 0:01:41]}  Nf6 {[%clk 0:01:55]} 15. Ke2 {[%clk 0:01:39]}  Bd6 {[%clk 0:01:39]} 16. g3 {[%clk 0:01:34]}  Kd7 {[%clk 0:01:39]} 17. Bd4 {[%clk 0:01:26]}  Rhg8 {[%clk 0:01:18]} 18. Bxf6 {[%clk 0:01:24]}  gxf6 {[%clk 0:01:19]} 19. Rhd1 {[%clk 0:01:24]}  f5 {[%clk 0:01:19]} 20. Na4 {[%clk 0:01:13]}  Rab8 {[%clk 0:01:10]} 21. Rc4 {[%clk 0:01:12]}  Rgd8 {[%clk 0:01:07]} 22. b3 {[%clk 0:01:09]}  Rb5 {[%clk 0:00:58]} 23. Nc3 {[%clk 0:00:57]}  Rbb8 {[%clk 0:00:48]} 24. Rcd4 {[%clk 0:00:53]}  Ke7 {[%clk 0:00:47]} 25. Na4 {[%clk 0:00:44]}  Rb5 {[%clk 0:00:44]} 26. Nc3 {[%clk 0:00:45]}  Rbb8 {[%clk 0:00:40]} 27. Rc4 {[%clk 0:00:43]}  Rdc8 {[%clk 0:00:38]} 28. Kf3 {[%clk 0:00:37]}  h5 {[%clk 0:00:36]} 29. Rc1 {[%clk 0:00:33]}  Kd7 {[%clk 0:00:31]} 30. Ke2 {[%clk 0:00:28]}  Rb6 {[%clk 0:00:30]} 31. Rd1 {[%clk 0:00:27]}  Ke7 {[%clk 0:00:30]} 32. Rd3 {[%clk 0:00:25]}  Rd8 {[%clk 0:00:21]} 33. Rd2 {[%clk 0:00:23]}  Rc8 {[%clk 0:00:20]} 34. Rc2 {[%clk 0:00:24]}  Kd7 {[%clk 0:00:20]} 35. Rd4 {[%clk 0:00:23]}  Ke7 {[%clk 0:00:20]} 36. Ra4 {[%clk 0:00:23]}  Rc7 {[%clk 0:00:19]} 37. Nd1 {[%clk 0:00:20]}  Rb4 {[%clk 0:00:16]} 38. Rxb4 {[%clk 0:00:20]}  Bxb4 {[%clk 0:00:17]} 39. Ne3 {[%clk 0:00:20]}  f6 {[%clk 0:00:10]} 40. Nc4 {[%clk 0:00:20]}  Bc5 {[%clk 0:00:10]} 41. a3 {[%clk 0:00:15]}  Bb6 {[%clk 0:00:06]} 42. b4 {[%clk 0:00:14]}  Kd7 {[%clk 0:00:06]} 43. a4 {[%clk 0:00:13]}  Ke7 {[%clk 0:00:06]} 44. Rd2 {[%clk 0:00:12]}  Rb7 {[%clk 0:00:06]} 45. Nd6 {[%clk 0:00:10]}  Rb8 {[%clk 0:00:06]} 46. Nc4 {[%clk 0:00:07]}  Bc7 {[%clk 0:00:05]} 47. Rb2 {[%clk 0:00:08]}  e5 {[%clk 0:00:05]} 48. Ne3 {[%clk 0:00:06]}  Ke6 {[%clk 0:00:04]} 49. Rc2 {[%clk 0:00:06]}  Rxb4 {[%clk 0:00:02]} 50. Rxc6+ {[%clk 0:00:06]}  Kd7 {[%clk 0:00:03]} 51. Rxf6 {[%clk 0:00:06]}  exf4 {[%clk 0:00:03]} 52. gxf4 {[%clk 0:00:04]}  Bxf4 {[%clk 0:00:00]} 53. Nd5 {[%clk 0:00:03]} 1-0


[Site "https://www.chess.com"]

[Event "Titled Tuesday Blitz June 27 Early 2023"]
[White "Andreikin, Dmitry"]
[Black "Nogerbek, Kazybek"]
[WhiteFideId "4158814"]
[BlackFideId "13710427"]
[WhiteElo "3000"]
[BlackElo "2913"]
[Result "1-0"]
[Round "6"]
[TimeControl "180+2"]
[Date "2023.06.27"]
[WhiteClock "0:00:07"]
[BlackClock "0:00:00"]
[Board "2"]

1. e4 {[%clk 0:03:00]}  e5 {[%clk 0:02:59]} 2. Nf3 {[%clk 0:02:59]}  Nc6 {[%clk 0:02:59]} 3. Bb5 {[%clk 0:02:59]}  a6 {[%clk 0:02:59]} 4. Ba4 {[%clk 0:02:58]}  Nf6 {[%clk 0:02:59]} 5. O-O {[%clk 0:02:58]}  Be7 {[%clk 0:02:55]} 6. Bxc6 {[%clk 0:02:57]}  dxc6 {[%clk 0:02:55]} 7. d3 {[%clk 0:02:58]}  Nd7 {[%clk 0:02:55]} 8. Nbd2 {[%clk 0:02:57]}  O-O {[%clk 0:02:55]} 9. Nc4 {[%clk 0:02:57]}  f6 {[%clk 0:02:53]} 10. Nh4 {[%clk 0:02:57]}  Nc5 {[%clk 0:02:50]} 11. b3 {[%clk 0:02:57]}  a5 {[%clk 0:02:47]} 12. Be3 {[%clk 0:02:55]}  b6 {[%clk 0:02:46]} 13. Nf5 {[%clk 0:02:54]}  Ne6 {[%clk 0:02:46]} 14. Qg4 {[%clk 0:02:50]}  Kh8 {[%clk 0:02:37]} 15. Qg3 {[%clk 0:02:49]}  c5 {[%clk 0:02:22]} 16. f4 {[%clk 0:02:42]}  exf4 {[%clk 0:02:21]} 17. Rxf4 {[%clk 0:02:40]}  Rf7 {[%clk 0:01:46]} 18. Rh4 {[%clk 0:02:37]}  Nf8 {[%clk 0:01:39]} 19. Rf1 {[%clk 0:02:37]}  Be6 {[%clk 0:01:26]} 20. a4 {[%clk 0:02:28]}  Qd7 {[%clk 0:01:19]} 21. Rh5 {[%clk 0:02:24]}  g6 {[%clk 0:01:11]} 22. Nxe7 {[%clk 0:02:22]}  Qxe7 {[%clk 0:01:12]} 23. Rh6 {[%clk 0:02:16]}  Bxc4 {[%clk 0:01:12]} 24. bxc4 {[%clk 0:02:15]}  Re8 {[%clk 0:01:10]} 25. Rh3 {[%clk 0:01:55]}  Kg8 {[%clk 0:01:06]} 26. Qh4 {[%clk 0:01:29]}  Nd7 {[%clk 0:00:53]} 27. Bd2 {[%clk 0:01:23]}  Qe6 {[%clk 0:00:50]} 28. Rhf3 {[%clk 0:01:19]}  Ref8 {[%clk 0:00:48]} 29. Bc3 {[%clk 0:01:19]}  f5 {[%clk 0:00:26]} 30. exf5 {[%clk 0:01:02]}  Rxf5 {[%clk 0:00:27]} 31. Rxf5 {[%clk 0:00:55]}  Rxf5 {[%clk 0:00:28]} 32. Re1 {[%clk 0:00:32]}  Qf7 {[%clk 0:00:17]} 33. h3 {[%clk 0:00:32]}  g5 {[%clk 0:00:14]} 34. Qh6 {[%clk 0:00:28]}  Nf8 {[%clk 0:00:13]} 35. Qc6 {[%clk 0:00:16]}  Rf4 {[%clk 0:00:12]} 36. Kh2 {[%clk 0:00:15]}  g4 {[%clk 0:00:12]} 37. Qh6 {[%clk 0:00:14]}  gxh3 {[%clk 0:00:06]} 38. Qxh3 {[%clk 0:00:11]}  Rf5 {[%clk 0:00:05]} 39. Qg3+ {[%clk 0:00:08]}  Ng6 {[%clk 0:00:05]} 40. Kg1 {[%clk 0:00:08]}  h5 {[%clk 0:00:05]} 41. Re7 {[%clk 0:00:06]}  Rf1+ {[%clk 0:00:01]} 42. Kh2 {[%clk 0:00:06]}  Qf5 {[%clk 0:00:02]} 43. Rg7+ {[%clk 0:00:06]}  Kf8 {[%clk 0:00:02]} 44. Rxg6 {[%clk 0:00:06]}  h4 {[%clk 0:00:02]} 45. Rg8+ {[%clk 0:00:06]}  Ke7 {[%clk 0:00:03]} 46. Qg7+ {[%clk 0:00:07]}  Kd6 {[%clk 0:00:03]} 47. Qg6+ {[%clk 0:00:07]}  Qxg6 {[%clk 0:00:03]} 48. Rxg6+ {[%clk 0:00:08]}  Kd7 {[%clk 0:00:04]} 49. Rg7+ {[%clk 0:00:07]}  Kd6 {[%clk 0:00:03]} 50. Rg6+ {[%clk 0:00:07]}  Kd7 {[%clk 0:00:03]} 51. Be5 {[%clk 0:00:07]}  Ra1 {[%clk 0:00:00]} 52. Bxa1 {[%clk 0:00:07]} 1-0


[Site "https://www.chess.com"]

[Event "Titled Tuesday Blitz June 27 Early 2023"]
[White "Shubin, Kirill"]
[Black "So, Wesley"]
[WhiteFideId "34119962"]
[BlackFideId "5202213"]
[WhiteElo "2922"]
[BlackElo "3105"]
[Result "0-1"]
[Round "6"]
[TimeControl "180+2"]
[Date "2023.06.27"]
[WhiteClock "0:00:01"]
[BlackClock "0:00:16"]
[Board "6"]

1. e4 {[%clk 0:03:00]}  e5 {[%clk 0:02:53]} 2. Nf3 {[%clk 0:03:00]}  Nc6 {[%clk 0:02:52]} 3. Bb5 {[%clk 0:03:00]}  a6 {[%clk 0:02:51]} 4. Ba4 {[%clk 0:03:00]}  Nf6 {[%clk 0:02:51]} 5. d3 {[%clk 0:03:00]}  Bc5 {[%clk 0:02:49]} 6. Nc3 {[%clk 0:02:57]}  b5 {[%clk 0:02:43]} 7. Bb3 {[%clk 0:02:57]}  d6 {[%clk 0:02:42]} 8. Bg5 {[%clk 0:02:49]}  h6 {[%clk 0:02:37]} 9. Bh4 {[%clk 0:02:44]}  g5 {[%clk 0:02:27]} 10. Bg3 {[%clk 0:02:44]}  Bg4 {[%clk 0:02:27]} 11. h3 {[%clk 0:02:38]}  Bh5 {[%clk 0:02:26]} 12. Ne2 {[%clk 0:01:31]}  Na5 {[%clk 0:02:10]} 13. c3 {[%clk 0:01:09]}  Nxb3 {[%clk 0:02:10]} 14. axb3 {[%clk 0:01:10]}  Bb6 {[%clk 0:02:06]} 15. b4 {[%clk 0:01:06]}  O-O {[%clk 0:02:00]} 16. Bh2 {[%clk 0:00:52]}  Bxf3 {[%clk 0:01:50]} 17. gxf3 {[%clk 0:00:53]}  Nh5 {[%clk 0:01:49]} 18. h4 {[%clk 0:00:45]}  Qf6 {[%clk 0:01:48]} 19. Ng3 {[%clk 0:00:41]}  Nxg3 {[%clk 0:01:45]} 20. Bxg3 {[%clk 0:00:41]}  Kg7 {[%clk 0:01:40]} 21. Qe2 {[%clk 0:00:36]}  a5 {[%clk 0:01:36]} 22. bxa5 {[%clk 0:00:36]}  Bxa5 {[%clk 0:01:34]} 23. O-O-O {[%clk 0:00:31]}  b4 {[%clk 0:01:32]} 24. cxb4 {[%clk 0:00:25]}  Bb6 {[%clk 0:01:27]} 25. hxg5 {[%clk 0:00:20]}  hxg5 {[%clk 0:01:26]} 26. Rdg1 {[%clk 0:00:19]}  Ra1+ {[%clk 0:01:24]} 27. Kc2 {[%clk 0:00:19]}  Rxg1 {[%clk 0:01:25]} 28. Rxg1 {[%clk 0:00:20]}  Rg8 {[%clk 0:01:21]} 29. Qd2 {[%clk 0:00:17]}  Kf8 {[%clk 0:01:20]} 30. Qe2 {[%clk 0:00:16]}  Ke7 {[%clk 0:01:17]} 31. Ra1 {[%clk 0:00:16]}  Qe6 {[%clk 0:01:13]} 32. Qd2 {[%clk 0:00:15]}  Qd7 {[%clk 0:01:07]} 33. Qc3 {[%clk 0:00:13]}  Rh8 {[%clk 0:01:05]} 34. Qc4 {[%clk 0:00:12]}  f6 {[%clk 0:01:04]} 35. b5 {[%clk 0:00:10]}  Qe6 {[%clk 0:01:03]} 36. Qc6 {[%clk 0:00:09]}  Qd7 {[%clk 0:00:59]} 37. Qc4 {[%clk 0:00:09]}  Qe6 {[%clk 0:00:47]} 38. Qc6 {[%clk 0:00:09]}  Kf7 {[%clk 0:00:46]} 39. Ra8 {[%clk 0:00:07]}  Rxa8 {[%clk 0:00:41]} 40. Qxa8 {[%clk 0:00:08]}  Qe8 {[%clk 0:00:41]} 41. Qd5+ {[%clk 0:00:08]}  Qe6 {[%clk 0:00:40]} 42. Qc6 {[%clk 0:00:06]}  Qe8 {[%clk 0:00:40]} 43. Qd5+ {[%clk 0:00:06]}  Ke7 {[%clk 0:00:38]} 44. Qc4 {[%clk 0:00:06]}  Qa8 {[%clk 0:00:37]} 45. Kb3 {[%clk 0:00:06]}  Bc5 {[%clk 0:00:36]} 46. Kc2 {[%clk 0:00:03]}  Qe8 {[%clk 0:00:33]} 47. Kb3 {[%clk 0:00:03]}  Kd7 {[%clk 0:00:31]} 48. Qd5 {[%clk 0:00:03]}  Bb6 {[%clk 0:00:25]} 49. Kc4 {[%clk 0:00:04]}  Ke7 {[%clk 0:00:25]} 50. b4 {[%clk 0:00:03]}  Qc8 {[%clk 0:00:19]} 51. Kb3 {[%clk 0:00:02]}  Qe6 {[%clk 0:00:17]} 52. Kc4 {[%clk 0:00:02]}  Kd7 {[%clk 0:00:17]} 53. Qxe6+ {[%clk 0:00:03]}  Kxe6 {[%clk 0:00:18]} 54. Kc3 {[%clk 0:00:01]}  d5 {[%clk 0:00:18]} 55. Kc2 {[%clk 0:00:01]}  Kd6 {[%clk 0:00:18]} 56. Kc3 {[%clk 0:00:01]}  Bd4+ {[%clk 0:00:18]} 57. Kb3 {[%clk 0:00:02]}  Ke6 {[%clk 0:00:18]} 58. Kc2 {[%clk 0:00:02]}  Kd7 {[%clk 0:00:17]} 59. Kb3 {[%clk 0:00:02]}  Kc8 {[%clk 0:00:17]} 60. Kc2 {[%clk 0:00:03]}  Kb7 {[%clk 0:00:16]} 61. Kb3 {[%clk 0:00:03]}  Kb6 {[%clk 0:00:17]} 62. Ka4 {[%clk 0:00:04]}  Bc3 {[%clk 0:00:16]} 63. Kb3 {[%clk 0:00:04]}  Bd4 {[%clk 0:00:16]} 64. Ka4 {[%clk 0:00:05]}  Ba1 {[%clk 0:00:17]} 65. Kb3 {[%clk 0:00:03]}  Kxb5 {[%clk 0:00:16]} 66. exd5 {[%clk 0:00:04]}  Bd4 {[%clk 0:00:16]} 67. Bh2 {[%clk 0:00:03]}  Bxf2 {[%clk 0:00:16]} 68. Kc2 {[%clk 0:00:03]}  Kxb4 {[%clk 0:00:16]} 69. Kd2 {[%clk 0:00:04]}  Kc5 {[%clk 0:00:16]} 70. Ke2 {[%clk 0:00:01]}  Bd4 {[%clk 0:00:16]} 0-1


[Site "https://www.chess.com"]

[Event "Titled Tuesday Blitz June 27 Early 2023"]
[White "Talibov, Shiroghlan"]
[Black "Mamedov, Rauf"]
[WhiteFideId "13429078"]
[BlackFideId "13401653"]
[WhiteElo "2823"]
[BlackElo "3072"]
[Result "1-0"]
[Round "6"]
[TimeControl "180+2"]
[Date "2023.06.27"]
[WhiteClock "0:00:21"]
[BlackClock "0:00:06"]
[Board "10"]

1. e4 {[%clk 0:03:00]}  c5 {[%clk 0:02:58]} 2. Nf3 {[%clk 0:03:00]}  Nc6 {[%clk 0:02:56]} 3. Bb5 {[%clk 0:02:53]}  g6 {[%clk 0:02:56]} 4. O-O {[%clk 0:02:50]}  Bg7 {[%clk 0:02:56]} 5. c3 {[%clk 0:02:40]}  Nf6 {[%clk 0:02:55]} 6. Re1 {[%clk 0:02:39]}  O-O {[%clk 0:02:55]} 7. h3 {[%clk 0:02:40]}  e5 {[%clk 0:02:49]} 8. Na3 {[%clk 0:02:36]}  d6 {[%clk 0:02:44]} 9. Nc2 {[%clk 0:02:33]}  Bd7 {[%clk 0:02:42]} 10. d4 {[%clk 0:02:29]}  exd4 {[%clk 0:02:36]} 11. cxd4 {[%clk 0:02:29]}  a6 {[%clk 0:02:30]} 12. Bxc6 {[%clk 0:02:08]}  Bxc6 {[%clk 0:02:29]} 13. d5 {[%clk 0:02:08]}  Bb5 {[%clk 0:02:22]} 14. a4 {[%clk 0:02:05]}  Bd7 {[%clk 0:02:22]} 15. Bf4 {[%clk 0:02:04]}  Re8 {[%clk 0:02:19]} 16. Nd2 {[%clk 0:02:00]}  Qc7 {[%clk 0:02:02]} 17. Rc1 {[%clk 0:01:57]}  Bxa4 {[%clk 0:01:59]} 18. b3 {[%clk 0:01:57]}  Bb5 {[%clk 0:01:59]} 19. Qf3 {[%clk 0:01:55]}  Nd7 {[%clk 0:01:58]} 20. Ne3 {[%clk 0:01:45]}  Ne5 {[%clk 0:01:53]} 21. Qg3 {[%clk 0:01:45]}  a5 {[%clk 0:01:43]} 22. Nf3 {[%clk 0:01:39]}  Nxf3+ {[%clk 0:01:36]} 23. Qxf3 {[%clk 0:01:40]}  a4 {[%clk 0:01:34]} 24. bxa4 {[%clk 0:01:31]}  Rxa4 {[%clk 0:01:34]} 25. Qg3 {[%clk 0:01:29]}  Ra6 {[%clk 0:01:27]} 26. Nf5 {[%clk 0:01:10]}  gxf5 {[%clk 0:01:12]} 27. exf5 {[%clk 0:00:52]}  Rxe1+ {[%clk 0:00:58]} 28. Rxe1 {[%clk 0:00:53]}  f6 {[%clk 0:00:55]} 29. Re6 {[%clk 0:00:48]}  Qf7 {[%clk 0:00:08]} 30. Bxd6 {[%clk 0:00:47]}  Kh8 {[%clk 0:00:06]} 31. Re7 {[%clk 0:00:37]}  Qg8 {[%clk 0:00:07]} 32. Bxc5 {[%clk 0:00:31]}  Ra8 {[%clk 0:00:06]} 33. Rxb7 {[%clk 0:00:29]}  Ba6 {[%clk 0:00:05]} 34. Re7 {[%clk 0:00:25]}  Re8 {[%clk 0:00:05]} 35. Qxg7+ {[%clk 0:00:22]}  Qxg7 {[%clk 0:00:05]} 36. Rxe8+ {[%clk 0:00:23]}  Qg8 {[%clk 0:00:06]} 37. Rxg8+ {[%clk 0:00:23]}  Kxg8 {[%clk 0:00:07]} 38. d6 {[%clk 0:00:22]}  Kf7 {[%clk 0:00:06]} 39. d7 {[%clk 0:00:21]} 1-0


[Site "https://www.chess.com"]

[Event "Titled Tuesday Blitz June 27 Early 2023"]
[White "Sarana, Alexey"]
[Black "Elsa167"]
[WhiteFideId "24133795"]
[WhiteElo "3020"]
[BlackElo "2820"]
[Result "1-0"]
[Round "6"]
[TimeControl "180+2"]
[Date "2023.06.27"]
[WhiteClock "0:00:27"]
[BlackClock "0:00:05"]
[Board "11"]

1. d4 {[%clk 0:02:52]}  e6 {[%clk 0:03:00]} 2. c4 {[%clk 0:02:49]}  d5 {[%clk 0:03:00]} 3. Nc3 {[%clk 0:02:49]}  Nf6 {[%clk 0:03:01]} 4. cxd5 {[%clk 0:02:48]}  exd5 {[%clk 0:03:01]} 5. Bf4 {[%clk 0:02:46]}  Bd6 {[%clk 0:03:01]} 6. Bxd6 {[%clk 0:02:43]}  Qxd6 {[%clk 0:03:02]} 7. e3 {[%clk 0:02:44]}  c6 {[%clk 0:03:01]} 8. Bd3 {[%clk 0:02:44]}  O-O {[%clk 0:03:00]} 9. h3 {[%clk 0:02:44]}  Be6 {[%clk 0:02:56]} 10. Nf3 {[%clk 0:02:44]}  Nbd7 {[%clk 0:02:57]} 11. O-O {[%clk 0:02:44]}  Qe7 {[%clk 0:02:51]} 12. Qc2 {[%clk 0:02:43]}  g6 {[%clk 0:02:51]} 13. b4 {[%clk 0:02:41]}  Rfc8 {[%clk 0:02:45]} 14. a4 {[%clk 0:02:40]}  a5 {[%clk 0:02:40]} 15. bxa5 {[%clk 0:02:30]}  Rxa5 {[%clk 0:02:40]} 16. Rfb1 {[%clk 0:02:28]}  Ra7 {[%clk 0:02:37]} 17. Ra2 {[%clk 0:02:18]}  Ne8 {[%clk 0:02:34]} 18. Rab2 {[%clk 0:02:17]}  Nd6 {[%clk 0:02:34]} 19. Rb4 {[%clk 0:02:09]}  Qf6 {[%clk 0:02:19]} 20. Qe2 {[%clk 0:02:01]}  Bf5 {[%clk 0:02:13]} 21. Bxf5 {[%clk 0:02:00]}  Qxf5 {[%clk 0:02:14]} 22. Qd1 {[%clk 0:01:49]}  Re8 {[%clk 0:02:08]} 23. Ne2 {[%clk 0:01:48]}  Rea8 {[%clk 0:01:55]} 24. Nf4 {[%clk 0:01:47]}  Qf6 {[%clk 0:01:12]} 25. Nd3 {[%clk 0:01:45]}  Qe7 {[%clk 0:01:10]} 26. Nfe5 {[%clk 0:01:42]}  Nxe5 {[%clk 0:01:08]} 27. Nxe5 {[%clk 0:01:43]}  f6 {[%clk 0:01:06]} 28. Nd3 {[%clk 0:01:43]}  Ne4 {[%clk 0:01:04]} 29. Qc2 {[%clk 0:01:43]}  h5 {[%clk 0:00:57]} 30. Nf4 {[%clk 0:01:41]}  Qf7 {[%clk 0:00:39]} 31. f3 {[%clk 0:01:23]}  g5 {[%clk 0:00:37]} 32. Nxh5 {[%clk 0:01:21]}  Nd6 {[%clk 0:00:32]} 33. Ng3 {[%clk 0:01:18]}  Nc4 {[%clk 0:00:32]} 34. Nf5 {[%clk 0:01:17]}  Kh8 {[%clk 0:00:26]} 35. Qf2 {[%clk 0:01:10]}  Qh7 {[%clk 0:00:20]} 36. e4 {[%clk 0:01:10]}  Re8 {[%clk 0:00:15]} 37. Re1 {[%clk 0:01:09]}  Raa8 {[%clk 0:00:12]} 38. Qg3 {[%clk 0:01:00]}  b6 {[%clk 0:00:12]} 39. Qg4 {[%clk 0:00:52]}  Rad8 {[%clk 0:00:12]} 40. e5 {[%clk 0:00:47]}  fxe5 {[%clk 0:00:11]} 41. Qxg5 {[%clk 0:00:48]}  Rf8 {[%clk 0:00:04]} 42. Ne7 {[%clk 0:00:38]}  Rg8 {[%clk 0:00:03]} 43. Nxg8 {[%clk 0:00:36]}  Rxg8 {[%clk 0:00:03]} 44. Qf6+ {[%clk 0:00:36]}  Rg7 {[%clk 0:00:03]} 45. Rxc4 {[%clk 0:00:30]}  dxc4 {[%clk 0:00:03]} 46. Rxe5 {[%clk 0:00:29]}  Qc2 {[%clk 0:00:04]} 47. Qh6+ {[%clk 0:00:26]}  Kg8 {[%clk 0:00:04]} 48. Re8+ {[%clk 0:00:26]}  Kf7 {[%clk 0:00:05]} 49. Qe6# {[%clk 0:00:27]} 1-0


[Site "https://www.chess.com"]

[Event "Titled Tuesday Blitz June 27 Early 2023"]
[White "Terry, Renato"]
[Black "Ohanyan, Emin"]
[WhiteFideId "3803457"]
[BlackFideId "13312022"]
[WhiteElo "2998"]
[BlackElo "2818"]
[Result "1-0"]
[Round "6"]
[TimeControl "180+2"]
[Date "2023.06.27"]
[WhiteClock "0:01:49"]
[BlackClock "0:00:00"]
[Board "12"]

1. Nf3 {[%clk 0:03:00]}  d5 {[%clk 0:02:33]} 2. e3 {[%clk 0:02:58]}  Nf6 {[%clk 0:02:29]} 3. b3 {[%clk 0:02:58]}  c5 {[%clk 0:02:23]} 4. Bb2 {[%clk 0:02:58]}  Nc6 {[%clk 0:02:23]} 5. Bb5 {[%clk 0:02:57]}  Bd7 {[%clk 0:02:23]} 6. O-O {[%clk 0:02:57]}  e6 {[%clk 0:02:22]} 7. d3 {[%clk 0:02:52]}  a6 {[%clk 0:02:12]} 8. Bxc6 {[%clk 0:02:51]}  Bxc6 {[%clk 0:02:13]} 9. Ne5 {[%clk 0:02:52]}  Rc8 {[%clk 0:02:12]} 10. Nd2 {[%clk 0:02:52]}  Be7 {[%clk 0:02:12]} 11. a4 {[%clk 0:02:52]}  b6 {[%clk 0:02:08]} 12. Qf3 {[%clk 0:02:50]}  Bb7 {[%clk 0:01:56]} 13. Qg3 {[%clk 0:02:51]}  O-O {[%clk 0:01:52]} 14. f4 {[%clk 0:02:51]}  g6 {[%clk 0:01:27]} 15. Qh3 {[%clk 0:02:47]}  d4 {[%clk 0:01:01]} 16. e4 {[%clk 0:02:42]}  Nd7 {[%clk 0:00:57]} 17. Ng4 {[%clk 0:02:23]}  h5 {[%clk 0:00:57]} 18. Ne5 {[%clk 0:02:16]}  Nxe5 {[%clk 0:00:48]} 19. fxe5 {[%clk 0:02:17]}  b5 {[%clk 0:00:40]} 20. axb5 {[%clk 0:02:11]}  axb5 {[%clk 0:00:41]} 21. Nf3 {[%clk 0:02:11]}  Qc7 {[%clk 0:00:28]} 22. Bc1 {[%clk 0:02:08]}  c4 {[%clk 0:00:20]} 23. Bh6 {[%clk 0:01:55]}  Rfd8 {[%clk 0:00:16]} 24. g4 {[%clk 0:01:55]}  h4 {[%clk 0:00:07]} 25. Bg5 {[%clk 0:01:49]}  Rd7 {[%clk 0:00:02]} 26. Qxh4 {[%clk 0:01:49]}  cxd3 {[%clk 0:00:00]} 27. cxd3 {[%clk 0:01:49]} 1-0


[Site "https://www.chess.com"]

[Event "Titled Tuesday Blitz June 27 Early 2023"]
[White "Harshavardhan G B"]
[Black "Tabatabaei, M. Amin"]
[WhiteFideId "25059009"]
[BlackFideId "12521213"]
[WhiteElo "2795"]
[BlackElo "2992"]
[Result "1-0"]
[Round "6"]
[TimeControl "180+2"]
[Date "2023.06.27"]
[WhiteClock "0:00:23"]
[BlackClock "0:00:14"]
[Board "15"]

1. d4 {[%clk 0:03:00]}  Nf6 {[%clk 0:02:59]} 2. c4 {[%clk 0:03:01]}  g6 {[%clk 0:03:00]} 3. Nc3 {[%clk 0:02:57]}  d5 {[%clk 0:03:00]} 4. h4 {[%clk 0:02:54]}  c5 {[%clk 0:02:56]} 5. cxd5 {[%clk 0:02:50]}  Nxd5 {[%clk 0:02:55]} 6. Na4 {[%clk 0:02:50]}  Nc6 {[%clk 0:02:49]} 7. Nxc5 {[%clk 0:02:47]}  e5 {[%clk 0:02:49]} 8. Nb3 {[%clk 0:02:28]}  exd4 {[%clk 0:02:42]} 9. h5 {[%clk 0:02:28]}  Bf5 {[%clk 0:02:24]} 10. hxg6 {[%clk 0:02:26]}  Bxg6 {[%clk 0:01:54]} 11. a3 {[%clk 0:02:03]}  Rc8 {[%clk 0:01:34]} 12. Nf3 {[%clk 0:01:52]}  Bg7 {[%clk 0:01:34]} 13. g3 {[%clk 0:01:44]}  Na5 {[%clk 0:01:27]} 14. Nbxd4 {[%clk 0:01:25]}  O-O {[%clk 0:01:07]} 15. Bh3 {[%clk 0:01:25]}  Rc4 {[%clk 0:01:07]} 16. O-O {[%clk 0:01:20]}  Qb6 {[%clk 0:01:07]} 17. e3 {[%clk 0:01:15]}  Rd8 {[%clk 0:01:07]} 18. Bd2 {[%clk 0:01:11]}  Nc6 {[%clk 0:01:03]} 19. Rc1 {[%clk 0:01:04]}  Rxc1 {[%clk 0:01:01]} 20. Qxc1 {[%clk 0:01:05]}  Nxd4 {[%clk 0:00:55]} 21. Nxd4 {[%clk 0:01:06]}  Bxd4 {[%clk 0:00:55]} 22. exd4 {[%clk 0:01:06]}  Qxd4 {[%clk 0:00:56]} 23. Bg5 {[%clk 0:01:07]}  Re8 {[%clk 0:00:50]} 24. Rd1 {[%clk 0:01:04]}  Qe5 {[%clk 0:00:50]} 25. Bg2 {[%clk 0:01:02]}  Nf6 {[%clk 0:00:33]} 26. Qf4 {[%clk 0:00:34]}  Qxf4 {[%clk 0:00:33]} 27. Bxf4 {[%clk 0:00:35]}  b6 {[%clk 0:00:34]} 28. Be3 {[%clk 0:00:31]}  Be4 {[%clk 0:00:30]} 29. Bxe4 {[%clk 0:00:30]}  Nxe4 {[%clk 0:00:23]} 30. Rd7 {[%clk 0:00:30]}  Nxg3 {[%clk 0:00:22]} 31. Rxa7 {[%clk 0:00:30]}  b5 {[%clk 0:00:19]} 32. Rb7 {[%clk 0:00:29]}  Nf5 {[%clk 0:00:20]} 33. Rxb5 {[%clk 0:00:23]}  Nxe3 {[%clk 0:00:20]} 34. fxe3 {[%clk 0:00:24]}  Rxe3 {[%clk 0:00:21]} 35. a4 {[%clk 0:00:25]}  Re1+ {[%clk 0:00:21]} 36. Kf2 {[%clk 0:00:24]}  Ra1 {[%clk 0:00:22]} 37. a5 {[%clk 0:00:24]}  Kg7 {[%clk 0:00:23]} 38. b4 {[%clk 0:00:23]}  Kg6 {[%clk 0:00:23]} 39. Rb6+ {[%clk 0:00:22]}  Kf5 {[%clk 0:00:24]} 40. a6 {[%clk 0:00:22]}  h5 {[%clk 0:00:24]} 41. b5 {[%clk 0:00:22]}  Kf4 {[%clk 0:00:25]} 42. Rf6+ {[%clk 0:00:20]}  Kg4 {[%clk 0:00:24]} 43. Rxf7 {[%clk 0:00:21]}  Ra2+ {[%clk 0:00:25]} 44. Ke3 {[%clk 0:00:21]}  h4 {[%clk 0:00:26]} 45. Kd4 {[%clk 0:00:21]}  h3 {[%clk 0:00:26]} 46. Rh7 {[%clk 0:00:21]}  h2 {[%clk 0:00:26]} 47. Kc5 {[%clk 0:00:21]}  Kg3 {[%clk 0:00:24]} 48. Kb6 {[%clk 0:00:21]}  Rf2 {[%clk 0:00:15]} 49. Rxh2 {[%clk 0:00:20]}  Rxh2 {[%clk 0:00:13]} 50. a7 {[%clk 0:00:20]}  Rh8 {[%clk 0:00:13]} 51. Kb7 {[%clk 0:00:21]}  Rh7+ {[%clk 0:00:14]} 52. Ka6 {[%clk 0:00:21]}  Rh8 {[%clk 0:00:14]} 53. b6 {[%clk 0:00:22]}  Kf4 {[%clk 0:00:15]} 54. b7 {[%clk 0:00:22]}  Rh6+ {[%clk 0:00:15]} 55. Kb5 {[%clk 0:00:23]}  Rh5+ {[%clk 0:00:14]} 56. Kc4 {[%clk 0:00:23]} 1-0


[Site "https://www.chess.com"]